[Event "CAN-op"]
[Site "Ottawa CAN"]
[Date "2026.07.13"]
[Round "5.7"]
[White "Sambuev, Bator"]
[Black "Tran, Tri"]
[Result "1-0"]
[ECO "A06"]
[WhiteElo "2420"]
[BlackElo "2008"]
[WhiteFideId "-1"]
[BlackFideId "-1"]
[PlyCount "43"]
[GameId "2332995607228056"]
[EventDate "2026.07.11"]
[EventType "swiss"]
[EventRounds "9"]
[EventCountry "CAN"]
[TimeControl "5400+30"]
[WhiteClock "0:41:12"]
[BlackClock "0:07:10"]

1. Nf3 {[%emt 0:01:04.94]} d5 {[%emt 0:02:42.94]} 2. e3 {[%emt 0:00:59]} Nf6 {[%emt 0:00:28]} 3. c4 {[%emt 0:00:27]} c5 {[%emt 0:01:12]} 4. cxd5 {[%emt 0:00:41]} Nxd5 {[%emt 0:00:15]} 5. b3 {[%emt 0:00:16]} Nc6 {[%emt 0:03:55]} 6. Bb2 {[%emt 0:00:23]} Ndb4 {[%emt 0:00:55]} 7. d4 {[%emt 0:11:16]} Bf5 {[%emt 0:03:29]} 8. Na3 {[%emt 0:02:30]} Qa5 {[%emt 0:07:40]} 9. Qd2 {[%emt 0:16:31]} O-O-O {[%emt 0:02:50]} 10. Rc1 {[%emt 0:05:21.10]} e6 {[%emt 0:03:56]} 11. Nc4 {[%emt 0:04:58]} Qxa2 {[%emt 0:14:14.10]} 12. Be2 {[%emt 0:04:37]} cxd4 {[%emt 0:15:36]} 13. Nxd4 {[%emt 0:04:27]} Nxd4 {[%emt 0:23:42]} 14. exd4 {[%emt 0:03:18]} Nc6 {[%emt 0:00:17]} 15. O-O {[%emt 0:01:07]} Bb4 {[%emt 0:03:00]} 16. Qe3 {[%emt 0:00:31]} Qa6 {[%emt 0:07:02]} 17. Nd6+ {[%emt 0:00:34]} Rxd6 {[%emt 0:00:07]} 18. Bxa6 {[%emt 0:00:05]} bxa6 {[%emt 0:00:03]} 19. d5 {[%emt 0:00:47]} exd5 {[%emt 0:00:24]} 20. Qf4 {[%emt 0:00:07]} Be4 {[%emt 0:00:38]} 21. f3 {[%emt 0:00:09]} Bg6 {[%emt 0:01:24]} 22. Qxb4 {[%emt 0:00:09]} 1-0

[Event "CAN-op"]
[Site "Ottawa CAN"]
[Date "2026.07.13"]
[Round "5.8"]
[White "Chiku-Ratte, Olivier-Kenta"]
[Black "Kola, Venkat Karthikeya R"]
[Result "1-0"]
[ECO "B51"]
[WhiteElo "2354"]
[BlackElo "2130"]
[WhiteFideId "-1"]
[BlackFideId "-1"]
[PlyCount "79"]
[GameId "2332995607232153"]
[EventDate "2026.07.11"]
[EventType "swiss"]
[EventRounds "9"]
[EventCountry "CAN"]
[TimeControl "5400+30"]
[WhiteClock "0:04:05"]
[BlackClock "0:01:08"]

1. e4 {[%emt 0:04:15.94]} c5 {[%emt 0:00:06.94]} 2. Nf3 {[%emt 0:00:05]} d6 {[%emt 0:00:04]} 3. Bb5+ {[%emt 0:00:04]} Nd7 {[%emt 0:00:05]} 4. O-O {[%emt 0:00:22]} a6 {[%emt 0:00:04]} 5. Bd3 {[%emt 0:00:07]} Ngf6 {[%emt 0:00:29]} 6. Re1 {[%emt 0:00:23]} g6 {[%emt 0:00:42]} 7. c3 {[%emt 0:02:09]} Bg7 {[%emt 0:00:29]} 8. Bc2 {[%emt 0:00:11]} O-O {[%emt 0:00:13]} 9. d4 {[%emt 0:00:03]} b5 {[%emt 0:04:36]} 10. e5 {[%emt 0:26:22]} Ne8 {[%emt 0:11:19]} 11. Ng5 {[%emt 0:06:38.10]} Nc7 {[%emt 0:36:33.10]} 12. f4 {[%emt 0:13:49]} Nb6 {[%emt 0:04:41]} 13. dxc5 {[%emt 0:00:30]} dxc5 {[%emt 0:00:09]} 14. Qe2 {[%emt 0:01:35]} Ne6 {[%emt 0:07:37]} 15. Nxh7 {[%emt 0:15:23]} Nxf4 {[%emt 0:00:00]} 16. Bxf4 {[%emt 0:00:08]} Kxh7 {[%emt 0:00:00]} 17. Nd2 {[%emt 0:01:31]} Nd5 {[%emt 0:00:00]} 18. Bg5 {[%emt 0:01:21]} c4 {[%emt 0:00:38]} 19. Qh5+ {[%emt 0:03:52]} Kg8 {[%emt 0:00:17]} 20. Qh4 {[%emt 0:00:04]} Qb6+ {[%emt 0:04:00]} 21. Kh1 {[%emt 0:00:03]} Qe6 {[%emt 0:00:33]} 22. h3 {[%emt 0:01:38]} Bb7 {[%emt 0:03:56]} 23. Nf3 {[%emt 0:00:14]} Nc7 {[%emt 0:06:00]} 24. Nd4 {[%emt 0:01:49]} Qb6 {[%emt 0:00:28]} 25. Bxe7 {[%emt 0:00:33]} Rfe8 {[%emt 0:00:08]} 26. e6 {[%emt 0:05:11]} Bd5 {[%emt 0:02:27]} 27. exf7+ {[%emt 0:08:10]} Bxf7 {[%emt 0:00:18]} 28. Nf3 {[%emt 0:01:34]} Ne6 {[%emt 0:12:40]} 29. Ne5 {[%emt 0:01:11]} Nf8 {[%emt 0:02:32]} 30. Nxf7 {[%emt 0:02:07]} Kxf7 {[%emt 0:00:07]} 31. Be4 {[%emt 0:00:31]} Rad8 {[%emt 0:04:16]} 32. Bxd8 {[%emt 0:00:05]} Rxd8 {[%emt 0:00:13]} 33. Rad1 {[%emt 0:00:06]} Bf6 {[%emt 0:00:46]} 34. Qg3 {[%emt 0:00:43]} Rxd1 {[%emt 0:00:14]} 35. Rxd1 {[%emt 0:00:01]} Kg7 {[%emt 0:00:11]} 36. Qd6 {[%emt 0:02:36]} Qf2 {[%emt 0:01:04]} 37. Qc7+ {[%emt 0:00:15]} Kh6 {[%emt 0:00:10]} 38. Qf7 {[%emt 0:00:25]} Qe2 {[%emt 0:00:42]} 39. Qxf8+ {[%emt 0:00:11]} Bg7 {[%emt 0:00:04]} 40. Qf4+ {[%emt 0:00:09]} 1-0

[Event "CAN-op"]
[Site "Ottawa CAN"]
[Date "2026.07.14"]
[Round "6.1"]
[White "Preotu, Razvan"]
[Black "Jaferian, Koosha"]
[Result "1-0"]
[ECO "B12"]
[WhiteElo "2482"]
[BlackElo "2249"]
[WhiteFideId "-1"]
[BlackFideId "-1"]
[PlyCount "51"]
[GameId "2332995607256764"]
[EventDate "2026.07.11"]
[EventType "swiss"]
[EventRounds "9"]
[EventCountry "CAN"]
[TimeControl "5400+30"]
[WhiteClock "0:43:45"]
[BlackClock "0:29:23"]

1. e4 {[%emt 0:06:16.94]} c6 {[%emt 0:00:07.94]} 2. d4 {[%emt 0:00:13]} d5 {[%emt 0:00:05]} 3. f3 {[%emt 0:00:05]} dxe4 {[%emt 0:00:18]} 4. fxe4 {[%emt 0:00:07]} e5 {[%emt 0:00:05]} 5. Nf3 {[%emt 0:00:10]} Bg4 {[%emt 0:00:06]} 6. c3 {[%emt 0:00:08]} Nd7 {[%emt 0:04:11]} 7. Be2 {[%emt 0:00:21]} Ngf6 {[%emt 0:09:06]} 8. Nbd2 {[%emt 0:00:15]} exd4 {[%emt 0:03:11]} 9. cxd4 {[%emt 0:00:08]} Bb4 {[%emt 0:00:31]} 10. O-O {[%emt 0:01:19]} Bxd2 {[%emt 0:04:32]} 11. Bxd2 {[%emt 0:07:15]} Nxe4 {[%emt 0:02:34]} 12. Ng5 {[%emt 0:01:06]} Ndf6 {[%emt 0:09:23]} 13. Nxe4 {[%emt 0:02:38]} Nxe4 {[%emt 0:00:25]} 14. Bxg4 {[%emt 0:00:16]} Qxd4+ {[%emt 0:00:07]} 15. Kh1 {[%emt 0:00:04]} Qxd2 {[%emt 0:10:16.10]} 16. Qe1 {[%emt 0:08:51]} O-O {[%emt 0:04:44]} 17. Qxe4 {[%emt 0:00:06]} Qxb2 {[%emt 0:00:06]} 18. Qc4 {[%emt 0:17:10.10]} Qe5 {[%emt 0:08:18]} 19. Rae1 {[%emt 0:03:32]} Qc7 {[%emt 0:00:39]} 20. Qc5 {[%emt 0:00:15]} Qb6 {[%emt 0:04:00]} 21. Qe7 {[%emt 0:01:53]} Qd4 {[%emt 0:05:12]} 22. Bd1 {[%emt 0:02:34]} b5 {[%emt 0:02:42]} 23. Bb3 {[%emt 0:00:16]} c5 {[%emt 0:00:13]} 24. Rd1 {[%emt 0:03:07]} Qc3 {[%emt 0:02:37]} 25. Bxf7+ {[%emt 0:01:27]} Kh8 {[%emt 0:00:08]} 26. Bd5 {[%emt 0:00:12]} 1-0

[Event "CAN-op"]
[Site "Ottawa CAN"]
[Date "2026.07.14"]
[Round "6.2"]
[White "Chiku-Ratte, Olivier-Kenta"]
[Black "Stefansson, Vignir Vatnar"]
[Result "1/2-1/2"]
[ECO "D02"]
[WhiteElo "2354"]
[BlackElo "2540"]
[WhiteFideId "-1"]
[BlackFideId "-1"]
[PlyCount "117"]
[GameId "2332995607256765"]
[EventDate "2026.07.11"]
[EventType "swiss"]
[EventRounds "9"]
[EventCountry "CAN"]
[TimeControl "5400+30"]
[WhiteClock "0:01:24"]
[BlackClock "0:09:24"]

1. d4 {[%emt 0:06:09.94]} d5 {[%emt 0:01:37.94]} 2. Nf3 {[%emt 0:00:07]} Nf6 {[%emt 0:00:05]} 3. Bf4 {[%emt 0:00:04]} g6 {[%emt 0:02:13]} 4. e3 {[%emt 0:01:24]} Bg7 {[%emt 0:00:29]} 5. h3 {[%emt 0:00:41]} O-O {[%emt 0:00:11]} 6. Be2 {[%emt 0:05:21]} c5 {[%emt 0:00:28]} 7. c3 {[%emt 0:03:21]} Nc6 {[%emt 0:00:31]} 8. O-O {[%emt 0:00:39]} Nd7 {[%emt 0:01:14]} 9. Nbd2 {[%emt 0:08:21]} e5 {[%emt 0:02:28]} 10. dxe5 {[%emt 0:00:39]} Ndxe5 {[%emt 0:00:07]} 11. Nxe5 {[%emt 0:05:57]} Nxe5 {[%emt 0:00:42]} 12. Nf3 {[%emt 0:01:44]} Nc6 {[%emt 0:00:15]} 13. Qb3 {[%emt 0:05:10.10]} c4 {[%emt 0:05:31]} 14. Qa3 {[%emt 0:04:53]} Qb6 {[%emt 0:09:26]} 15. Rad1 {[%emt 0:09:13]} Qb5 {[%emt 0:01:32]} 16. Bd6 {[%emt 0:03:38]} Re8 {[%emt 0:04:11]} 17. Rd2 {[%emt 0:05:37]} h6 {[%emt 0:01:31]} 18. Qc5 {[%emt 0:01:22]} Qxc5 {[%emt 0:01:04]} 19. Bxc5 {[%emt 0:00:28]} b6 {[%emt 0:00:34]} 20. Bd6 {[%emt 0:01:46]} Be6 {[%emt 0:00:12]} 21. Nd4 {[%emt 0:07:03]} Nxd4 {[%emt 0:01:13]} 22. exd4 {[%emt 0:00:05]} Rad8 {[%emt 0:02:41]} 23. Bc7 {[%emt 0:00:31]} Rd7 {[%emt 0:00:28]} 24. Bf4 {[%emt 0:00:20]} b5 {[%emt 0:18:51.10]} 25. a3 {[%emt 0:02:21]} a5 {[%emt 0:00:35]} 26. Bf3 {[%emt 0:05:39]} Ra8 {[%emt 0:02:29]} 27. Ra1 {[%emt 0:04:12]} Raa7 {[%emt 0:02:52]} 28. Bb8 {[%emt 0:01:42]} Ra8 {[%emt 0:01:57]} 29. Be5 {[%emt 0:02:13]} Bf8 {[%emt 0:00:10]} 30. g4 {[%emt 0:03:45]} Rda7 {[%emt 0:00:21]} 31. Bd1 {[%emt 0:01:06]} Bd7 {[%emt 0:01:27]} 32. Rc2 {[%emt 0:06:06]} b4 {[%emt 0:00:58]} 33. Rcc1 {[%emt 0:00:14]} Bc6 {[%emt 0:04:30]} 34. Kg2 {[%emt 0:01:05]} bxa3 {[%emt 0:06:45]} 35. bxa3 {[%emt 0:00:04]} a4 {[%emt 0:00:02]} 36. Rcb1 {[%emt 0:01:18]} Rb7 {[%emt 0:03:23]} 37. Rxb7 {[%emt 0:00:13]} Bxb7 {[%emt 0:00:05]} 38. Bf4 {[%emt 0:02:42]} Bc6 {[%emt 0:01:18]} 39. Bc2 {[%emt 0:01:04]} Bd7 {[%emt 0:01:16]} 40. Bc1 {[%emt 0:01:02]} Re8 {[%emt 0:06:28]} 41. Kf1 {[%emt 0:00:19]} h5 {[%emt 0:04:21]} 42. f3 {[%emt 0:00:05]} hxg4 {[%emt 0:00:36]} 43. hxg4 {[%emt 0:00:06]} Rb8 {[%emt 0:00:08]} 44. Rb1 {[%emt 0:00:15]} Rxb1 {[%emt 0:00:04]} 45. Bxb1 {[%emt 0:00:02]} f5 {[%emt 0:00:05]} 46. g5 {[%emt 0:02:03]} f4 {[%emt 0:00:36]} 47. Bxg6 {[%emt 0:00:05]} Be7 {[%emt 0:00:03]} 48. Bh5 {[%emt 0:01:24]} Bxg5 {[%emt 0:00:11]} 49. Bg4 {[%emt 0:00:16]} Bxg4 {[%emt 0:04:43]} 50. fxg4 {[%emt 0:00:01]} Kf7 {[%emt 0:00:07]} 51. Bd2 {[%emt 0:01:15]} Kg6 {[%emt 0:02:07]} 52. Kf2 {[%emt 0:00:25]} Be7 {[%emt 0:00:07]} 53. Bc1 {[%emt 0:00:20]} Bh4+ {[%emt 0:00:07]} 54. Kf3 {[%emt 0:00:43]} Be1 {[%emt 0:01:19]} 55. Kxf4 {[%emt 0:00:18]} Bxc3 {[%emt 0:00:05]} 56. Ke5 {[%emt 0:00:22]} Be1 {[%emt 0:02:54]} 57. Kxd5 {[%emt 0:00:23]} c3 {[%emt 0:00:00]} 58. Be3 {[%emt 0:00:47]} Bd2 {[%emt 0:00:22]} 59. Kc4 {[%emt 0:00:07]} 1/2-1/2

[Event "CAN-op"]
[Site "Ottawa CAN"]
[Date "2026.07.14"]
[Round "6.4"]
[White "Stremavicius, Titas"]
[Black "Sambuev, Bator"]
[Result "1/2-1/2"]
[ECO "D02"]
[WhiteElo "2555"]
[BlackElo "2420"]
[WhiteFideId "-1"]
[BlackFideId "-1"]
[PlyCount "92"]
[GameId "2332995607264960"]
[EventDate "2026.07.11"]
[EventType "swiss"]
[EventRounds "9"]
[EventCountry "CAN"]
[TimeControl "5400+30"]
[WhiteClock "0:05:18"]
[BlackClock "0:23:00"]

1. Nf3 {[%emt 0:03:36.94]} d5 {[%emt 0:00:11.94]} 2. g3 {[%emt 0:00:14]} c5 {[%emt 0:00:05]} 3. Bg2 {[%emt 0:00:06]} Nf6 {[%emt 0:00:06]} 4. O-O {[%emt 0:00:07]} e6 {[%emt 0:00:04]} 5. d4 {[%emt 0:00:15]} cxd4 {[%emt 0:00:06]} 6. Nxd4 {[%emt 0:00:03]} e5 {[%emt 0:00:11]} 7. Nb3 {[%emt 0:00:03]} Be6 {[%emt 0:00:41]} 8. Bg5 {[%emt 0:00:33]} Nbd7 {[%emt 0:00:17]} 9. f4 {[%emt 0:00:09]} exf4 {[%emt 0:00:34]} 10. gxf4 {[%emt 0:00:06]} h6 {[%emt 0:01:34]} 11. Bh4 {[%emt 0:00:09]} Nb6 {[%emt 0:00:50]} 12. f5 {[%emt 0:04:50]} Bd7 {[%emt 0:00:44]} 13. e4 {[%emt 0:00:06]} dxe4 {[%emt 0:04:25]} 14. Nc3 {[%emt 0:03:10]} Be7 {[%emt 0:01:11]} 15. Bxf6 {[%emt 0:00:06]} Bxf6 {[%emt 0:00:07]} 16. Nxe4 {[%emt 0:00:06]} O-O {[%emt 0:00:20]} 17. Nxf6+ {[%emt 0:00:06]} Qxf6 {[%emt 0:00:08]} 18. Qd4 {[%emt 0:00:04]} Qxd4+ {[%emt 0:01:34]} 19. Nxd4 {[%emt 0:00:06]} Nc4 {[%emt 0:02:26]} 20. Rfe1 {[%emt 0:12:04]} Rad8 {[%emt 0:08:25]} 21. b3 {[%emt 0:09:42]} Nd6 {[%emt 0:04:52]} 22. Re5 {[%emt 0:05:19]} Rfe8 {[%emt 0:19:50.10]} 23. Rd5 {[%emt 0:05:48.10]} Nc8 {[%emt 0:01:29]} 24. Rd1 {[%emt 0:04:16]} Ne7 {[%emt 0:00:51]} 25. Rd6 {[%emt 0:19:32]} Bc8 {[%emt 0:00:49]} 26. Nb5 {[%emt 0:00:10]} Rxd6 {[%emt 0:00:06]} 27. Nxd6 {[%emt 0:00:04]} Rd8 {[%emt 0:00:06]} 28. Rd4 {[%emt 0:00:04]} b6 {[%emt 0:08:09]} 29. c4 {[%emt 0:01:25]} Ba6 {[%emt 0:00:42]} 30. Kf2 {[%emt 0:12:04]} Rd7 {[%emt 0:00:50]} 31. f6 {[%emt 0:04:01]} gxf6 {[%emt 0:01:39]} 32. Bh3 {[%emt 0:00:19]} Rd8 {[%emt 0:00:58]} 33. Ke3 {[%emt 0:01:07]} Kf8 {[%emt 0:03:37]} 34. Ne4 {[%emt 0:02:42]} Rxd4 {[%emt 0:00:53]} 35. Kxd4 {[%emt 0:00:03]} Nc6+ {[%emt 0:00:25]} 36. Kd5 {[%emt 0:05:39]} Nb4+ {[%emt 0:02:47]} 37. Kd6 {[%emt 0:00:01]} Nxa2 {[%emt 0:00:07]} 38. Kc7 {[%emt 0:00:05]} Nc1 {[%emt 0:00:46]} 39. Nd2 {[%emt 0:00:04]} Nxb3 {[%emt 0:03:14]} 40. Nxb3 {[%emt 0:00:02]} Bxc4 {[%emt 0:00:07]} 41. Nd4 {[%emt 0:00:50]} b5 {[%emt 0:03:14]} 42. Kd6 {[%emt 0:03:05]} a5 {[%emt 0:01:39]} 43. Kc5 {[%emt 0:00:22]} a4 {[%emt 0:00:35]} 44. Kb4 {[%emt 0:00:13]} Be6 {[%emt 0:04:02]} 45. Bf1 {[%emt 0:00:21]} Bd7 {[%emt 0:00:07]} 46. Nxb5 {[%emt 0:04:54]} Bxb5 {[%emt 0:04:36]} 1/2-1/2

[Event "CAN-op"]
[Site "Ottawa CAN"]
[Date "2026.07.14"]
[Round "6.5"]
[White "Atanasov, Anthony"]
[Black "Samsonkin, Artiom"]
[Result "1/2-1/2"]
[ECO "A47"]
[WhiteElo "2470"]
[BlackElo "2361"]
[WhiteFideId "-1"]
[BlackFideId "-1"]
[PlyCount "60"]
[GameId "2332995607269057"]
[EventDate "2026.07.11"]
[EventType "swiss"]
[EventRounds "9"]
[EventCountry "CAN"]
[TimeControl "5400+30"]
[WhiteClock "0:17:26"]
[BlackClock "0:07:18"]

1. d4 {[%emt 0:00:02.94]} Nf6 {[%emt 0:00:42.94]} 2. Nf3 {[%emt 0:00:05]} b6 {[%emt 0:00:18]} 3. e3 {[%emt 0:00:55]} Bb7 {[%emt 0:00:11]} 4. Bd3 {[%emt 0:00:08]} g6 {[%emt 0:01:18]} 5. O-O {[%emt 0:00:04]} Bg7 {[%emt 0:00:10]} 6. Re1 {[%emt 0:00:05]} d5 {[%emt 0:06:09]} 7. c4 {[%emt 0:01:22]} e6 {[%emt 0:03:03]} 8. Nbd2 {[%emt 0:05:12]} O-O {[%emt 0:01:54]} 9. Qc2 {[%emt 0:01:34]} Na6 {[%emt 0:06:45]} 10. a3 {[%emt 0:00:15]} c5 {[%emt 0:00:06]} 11. b3 {[%emt 0:03:41]} Rc8 {[%emt 0:04:34]} 12. Bb2 {[%emt 0:00:38]} Qe7 {[%emt 0:21:59.10]} 13. Rac1 {[%emt 0:10:25]} Rfd8 {[%emt 0:03:03]} 14. Qb1 {[%emt 0:03:12]} cxd4 {[%emt 0:00:44]} 15. exd4 {[%emt 0:00:26]} Nb8 {[%emt 0:01:19]} 16. Qa1 {[%emt 0:08:55]} Nh5 {[%emt 0:08:47]} 17. Bf1 {[%emt 0:00:37]} Nd7 {[%emt 0:13:42]} 18. g3 {[%emt 0:06:40.10]} Qd6 {[%emt 0:02:54]} 19. Bg2 {[%emt 0:02:30]} Qb8 {[%emt 0:00:35]} 20. Rc2 {[%emt 0:12:50]} Qa8 {[%emt 0:01:05]} 21. Qd1 {[%emt 0:03:01]} Nhf6 {[%emt 0:00:58]} 22. Qe2 {[%emt 0:01:45]} dxc4 {[%emt 0:01:46]} 23. bxc4 {[%emt 0:00:02]} b5 {[%emt 0:07:00]} 24. c5 {[%emt 0:00:05]} a6 {[%emt 0:00:12]} 25. h4 {[%emt 0:06:33]} Bd5 {[%emt 0:01:37]} 26. a4 {[%emt 0:01:10]} Qb7 {[%emt 0:01:54]} 27. Ra1 {[%emt 0:02:13]} Ne8 {[%emt 0:03:24]} 28. axb5 {[%emt 0:01:35]} axb5 {[%emt 0:00:01]} 29. Bf1 {[%emt 0:05:03]} Nd6 {[%emt 0:01:01]} 30. Rac1 {[%emt 0:07:00]} Nc4 {[%emt 0:01:00]} 1/2-1/2

[Event "CAN-op"]
[Site "Ottawa CAN"]
[Date "2026.07.14"]
[Round "6.6"]
[White "Cummings, David"]
[Black "Noritsyn, Nikolay"]
[Result "1/2-1/2"]
[ECO "A30"]
[WhiteElo "2233"]
[BlackElo "2458"]
[WhiteFideId "-1"]
[BlackFideId "-1"]
[PlyCount "115"]
[GameId "2332995607273154"]
[EventDate "2026.07.11"]
[EventType "swiss"]
[EventRounds "9"]
[EventCountry "CAN"]
[TimeControl "5400+30"]
[WhiteClock "0:03:54"]
[BlackClock "0:03:28"]

1. Nf3 {[%emt 0:00:06.94]} Nf6 {[%emt 0:01:45.94]} 2. c4 {[%emt 0:00:27]} b6 {[%emt 0:00:42]} 3. g3 {[%emt 0:00:36]} Bb7 {[%emt 0:00:09]} 4. Bg2 {[%emt 0:00:05]} c5 {[%emt 0:00:15]} 5. O-O {[%emt 0:00:59]} g6 {[%emt 0:00:10]} 6. b3 {[%emt 0:02:00]} Bg7 {[%emt 0:00:16]} 7. Bb2 {[%emt 0:00:05]} O-O {[%emt 0:01:03]} 8. Nc3 {[%emt 0:00:23]} d6 {[%emt 0:00:41]} 9. d4 {[%emt 0:06:44]} cxd4 {[%emt 0:02:49]} 10. Nxd4 {[%emt 0:00:50]} Bxg2 {[%emt 0:00:12]} 11. Kxg2 {[%emt 0:00:04]} Qd7 {[%emt 0:02:08]} 12. Rc1 {[%emt 0:03:06]} Qb7+ {[%emt 0:01:20]} 13. Kg1 {[%emt 0:07:49]} Nbd7 {[%emt 0:00:49]} 14. Qd2 {[%emt 0:04:32]} Rfc8 {[%emt 0:11:18]} 15. Qe3 {[%emt 0:13:16.10]} Ne5 {[%emt 0:04:17]} 16. f4 {[%emt 0:12:33]} Nfg4 {[%emt 0:36:14.10]} 17. Qe4 {[%emt 0:14:30]} Qxe4 {[%emt 0:02:22]} 18. Nxe4 {[%emt 0:00:03]} Nd7 {[%emt 0:01:08]} 19. h3 {[%emt 0:12:27]} Ngf6 {[%emt 0:03:04]} 20. Nd2 {[%emt 0:00:48]} a6 {[%emt 0:01:11]} 21. Nc2 {[%emt 0:02:18]} Ne4 {[%emt 0:02:46]} 22. Nxe4 {[%emt 0:01:42]} Bxb2 {[%emt 0:00:06]} 23. Rcd1 {[%emt 0:01:03]} b5 {[%emt 0:03:21]} 24. Ne3 {[%emt 0:00:21]} Nb6 {[%emt 0:00:47]} 25. Rd2 {[%emt 0:03:00]} Bg7 {[%emt 0:01:33]} 26. cxb5 {[%emt 0:03:31]} axb5 {[%emt 0:00:08]} 27. g4 {[%emt 0:00:54]} Rc6 {[%emt 0:02:39]} 28. f5 {[%emt 0:00:52]} Bf8 {[%emt 0:07:48]} 29. Kg2 {[%emt 0:02:39]} Ra5 {[%emt 0:00:46]} 30. h4 {[%emt 0:01:40]} b4 {[%emt 0:00:48]} 31. Nc2 {[%emt 0:03:01]} Rxa2 {[%emt 0:05:46]} 32. Nxb4 {[%emt 0:00:08]} Rxd2 {[%emt 0:00:05]} 33. Nxd2 {[%emt 0:00:02]} Rc8 {[%emt 0:00:37]} 34. Ra1 {[%emt 0:01:22]} Rc5 {[%emt 0:04:06]} 35. f6 {[%emt 0:01:03]} Re5 {[%emt 0:01:08]} 36. e4 {[%emt 0:01:20]} exf6 {[%emt 0:00:10]} 37. Ra6 {[%emt 0:00:15]} Rb5 {[%emt 0:00:16]} 38. Nc6 {[%emt 0:00:30]} Nd7 {[%emt 0:00:51]} 39. Nd4 {[%emt 0:00:35]} Rb8 {[%emt 0:00:26]} 40. Nc6 {[%emt 0:00:39]} Rb5 {[%emt 0:00:26]} 41. Nd4 {[%emt 0:00:14]} Rb7 {[%emt 0:00:27]} 42. Nc4 {[%emt 0:00:45]} Nc5 {[%emt 0:00:16]} 43. Rb6 {[%emt 0:00:21]} Ra7 {[%emt 0:01:30]} 44. Kf3 {[%emt 0:00:27]} Nd7 {[%emt 0:00:34]} 45. Rb5 {[%emt 0:00:53]} Kg7 {[%emt 0:00:54]} 46. Nc6 {[%emt 0:00:35]} Rc7 {[%emt 0:00:30]} 47. Nb4 {[%emt 0:00:20]} Nc5 {[%emt 0:02:10]} 48. Nd5 {[%emt 0:00:10]} Ra7 {[%emt 0:00:06]} 49. b4 {[%emt 0:00:35]} Ne6 {[%emt 0:00:23]} 50. Ra5 {[%emt 0:00:10]} Rb7 {[%emt 0:00:09]} 51. Ke3 {[%emt 0:00:26]} Nc7 {[%emt 0:01:02]} 52. Nxc7 {[%emt 0:00:51]} Rxc7 {[%emt 0:00:01]} 53. Kd4 {[%emt 0:00:15]} d5 {[%emt 0:00:11]} 54. exd5 {[%emt 0:00:10]} Bxb4 {[%emt 0:00:02]} 55. Rb5 {[%emt 0:00:09]} Bf8 {[%emt 0:00:21]} 56. d6 {[%emt 0:00:11]} Rxc4+ {[%emt 0:00:24]} 57. Kxc4 {[%emt 0:00:02]} Bxd6 {[%emt 0:00:05]} 58. Kd3 {[%emt 0:00:43]} 1/2-1/2

[Event "CAN-op"]
[Site "Ottawa CAN"]
[Date "2026.07.15"]
[Round "7.1"]
[White "Rodrigue-Lemieux, Shawn"]
[Black "Preotu, Razvan"]
[Result "1-0"]
[ECO "D10"]
[WhiteElo "2534"]
[BlackElo "2482"]
[WhiteFideId "-1"]
[BlackFideId "-1"]
[PlyCount "81"]
[GameId "2332995607305961"]
[EventDate "2026.07.11"]
[EventType "swiss"]
[EventRounds "9"]
[EventCountry "CAN"]
[TimeControl "5400+30"]
[WhiteClock "0:04:24"]
[BlackClock "0:11:40"]

1. c4 {[%emt 0:00:00.94]} c6 {[%emt 0:08:35.94]} 2. d4 {[%emt 0:00:18]} d5 {[%emt 0:00:06]} 3. cxd5 {[%emt 0:00:06]} cxd5 {[%emt 0:00:06]} 4. Bg5 {[%emt 0:00:05]} Nc6 {[%emt 0:01:09]} 5. Nc3 {[%emt 0:00:09]} f6 {[%emt 0:02:17]} 6. Bd2 {[%emt 0:00:07]} e5 {[%emt 0:06:07]} 7. e4 {[%emt 0:00:22]} dxe4 {[%emt 0:00:13]} 8. dxe5 {[%emt 0:00:08]} fxe5 {[%emt 0:00:05]} 9. Bc4 {[%emt 0:00:38]} Nf6 {[%emt 0:00:16]} 10. Nge2 {[%emt 0:01:25]} a6 {[%emt 0:11:48]} 11. Ng3 {[%emt 0:08:16]} Bg4 {[%emt 0:03:35]} 12. Be2 {[%emt 0:13:22]} Bxe2 {[%emt 0:00:42]} 13. Qxe2 {[%emt 0:01:13]} Qd3 {[%emt 0:04:19.10]} 14. Ngxe4 {[%emt 0:04:24]} Qxe2+ {[%emt 0:04:14]} 15. Kxe2 {[%emt 0:00:07]} Nd4+ {[%emt 0:00:02]} 16. Kf1 {[%emt 0:01:16]} Bb4 {[%emt 0:01:27]} 17. g3 {[%emt 0:04:48]} O-O-O {[%emt 0:05:59]} 18. Bg5 {[%emt 0:06:12.10]} Bxc3 {[%emt 0:07:58]} 19. Nxc3 {[%emt 0:17:07]} h6 {[%emt 0:02:01]} 20. Be3 {[%emt 0:06:43]} Ng4 {[%emt 0:03:11]} 21. Rd1 {[%emt 0:04:51]} Rhf8 {[%emt 0:13:07]} 22. Kg2 {[%emt 0:00:09]} Nxe3+ {[%emt 0:00:43]} 23. fxe3 {[%emt 0:00:06]} Nf5 {[%emt 0:00:05]} 24. Kf3 {[%emt 0:01:33]} Rd6 {[%emt 0:07:56]} 25. Ke4 {[%emt 0:03:56]} Rb6 {[%emt 0:00:49]} 26. b3 {[%emt 0:08:14]} Rb4+ {[%emt 0:07:14]} 27. Kd3 {[%emt 0:00:14]} h5 {[%emt 0:00:49]} 28. Rhf1 {[%emt 0:04:50]} Rd8+ {[%emt 0:03:26]} 29. Ke2 {[%emt 0:00:07]} Rxd1 {[%emt 0:00:04]} 30. Rxd1 {[%emt 0:00:32]} Rb6 {[%emt 0:01:48]} 31. Rd5 {[%emt 0:01:19]} Re6 {[%emt 0:00:05]} 32. Ne4 {[%emt 0:01:02]} Kc7 {[%emt 0:00:50]} 33. Ng5 {[%emt 0:02:00]} Re7 {[%emt 0:02:23]} 34. Nf3 {[%emt 0:00:10]} Nd6 {[%emt 0:00:04]} 35. Rxe5 {[%emt 0:00:59]} Rxe5 {[%emt 0:00:08]} 36. Nxe5 {[%emt 0:00:04]} Nb5 {[%emt 0:00:12]} 37. Kd3 {[%emt 0:00:23]} Kd6 {[%emt 0:00:13]} 38. Ng6 {[%emt 0:00:21]} Na7 {[%emt 0:01:07]} 39. Nf4 {[%emt 0:00:51]} h4 {[%emt 0:00:17]} 40. gxh4 {[%emt 0:00:05]} Nc6 {[%emt 0:00:35]} 41. Ke4 {[%emt 0:00:47]} 1-0